[Event "Titled Tuesday Blitz December 13 Early 2022"]
[White "Svane, Rasmus"]
[Black "Harsh Suresh"]
[WhiteFideId "4657101"]
[BlackFideId "45018464"]
[WhiteElo "2674"]
[BlackElo "2227"]
[Result "1-0"]
[Round "03"]
[TimeControl "180+1"]
[Date "2022.12.13"]
[WhiteClock "0:01:25"]
[BlackClock "0:00:36"]

1. Nf3 {[%clk 0:03:00]}  Nf6 {[%clk 0:02:58]} 2. g3 {[%clk 0:03:01]}  b6 {[%clk 0:02:57]} 3. Bg2 {[%clk 0:03:01]}  Bb7 {[%clk 0:02:57]} 4. O-O {[%clk 0:03:02]}  e6 {[%clk 0:02:58]} 5. d4 {[%clk 0:03:02]}  Be7 {[%clk 0:02:58]} 6. c4 {[%clk 0:03:02]}  O-O {[%clk 0:02:57]} 7. Re1 {[%clk 0:03:02]}  c5 {[%clk 0:02:57]} 8. d5 {[%clk 0:03:02]}  exd5 {[%clk 0:02:56]} 9. Nh4 {[%clk 0:03:02]}  Re8 {[%clk 0:02:54]} 10. Nc3 {[%clk 0:03:02]}  Qc8 {[%clk 0:02:47]} 11. cxd5 {[%clk 0:02:53]}  d6 {[%clk 0:02:46]} 12. e4 {[%clk 0:02:54]}  Bf8 {[%clk 0:02:45]} 13. Bf4 {[%clk 0:02:53]}  a6 {[%clk 0:02:33]} 14. Nf5 {[%clk 0:02:50]}  Qc7 {[%clk 0:02:25]} 15. e5 {[%clk 0:02:34]}  dxe5 {[%clk 0:02:21]} 16. d6 {[%clk 0:02:35]}  Qd7 {[%clk 0:02:21]} 17. Bxb7 {[%clk 0:02:36]}  Qxb7 {[%clk 0:02:20]} 18. Bxe5 {[%clk 0:02:35]}  Nbd7 {[%clk 0:02:20]} 19. Bf4 {[%clk 0:02:21]}  Rxe1+ {[%clk 0:02:02]} 20. Qxe1 {[%clk 0:02:20]}  Re8 {[%clk 0:02:03]} 21. Qd2 {[%clk 0:02:15]}  g6 {[%clk 0:01:52]} 22. Ne3 {[%clk 0:02:10]}  g5 {[%clk 0:01:19]} 23. Nf5 {[%clk 0:01:40]}  gxf4 {[%clk 0:01:17]} 24. Qxf4 {[%clk 0:01:41]}  Ne5 {[%clk 0:00:59]} 25. Qg5+ {[%clk 0:01:34]}  Ng6 {[%clk 0:00:57]} 26. Qxf6 {[%clk 0:01:34]}  h6 {[%clk 0:00:50]} 27. Rd1 {[%clk 0:01:31]}  Qd7 {[%clk 0:00:46]} 28. Nd5 {[%clk 0:01:25]}  Re5 {[%clk 0:00:36]} 29. Qxe5 {[%clk 0:01:25]}  Nxe5 {[%clk 0:00:36]} 30. Nf6+ {[%clk 0:01:25]} 1-0


[Site "https://www.chess.com"]

[Event "Titled Tuesday Blitz December 13 Early 2022"]
[White "Timofeev, Artyom"]
[Black "Matinian, Nikita"]
[WhiteFideId "4140419"]
[BlackFideId "24129100"]
[WhiteElo "2586"]
[BlackElo "2422"]
[Result "1-0"]
[Round "03"]
[TimeControl "180+1"]
[Date "2022.12.13"]
[WhiteClock "0:01:52"]
[BlackClock "0:00:14"]

1. d4 {[%clk 0:03:00]}  Nf6 {[%clk 0:02:44]} 2. Bf4 {[%clk 0:03:00]}  d5 {[%clk 0:02:40]} 3. Nc3 {[%clk 0:02:59]}  c6 {[%clk 0:02:39]} 4. e3 {[%clk 0:02:57]}  Bf5 {[%clk 0:02:39]} 5. Nf3 {[%clk 0:02:51]}  e6 {[%clk 0:02:37]} 6. Ne5 {[%clk 0:02:51]}  Nbd7 {[%clk 0:02:36]} 7. g4 {[%clk 0:02:50]}  Bg6 {[%clk 0:02:24]} 8. h4 {[%clk 0:02:49]}  h6 {[%clk 0:02:16]} 9. Nxg6 {[%clk 0:02:49]}  fxg6 {[%clk 0:02:17]} 10. Bd3 {[%clk 0:02:48]}  Kf7 {[%clk 0:02:13]} 11. Qf3 {[%clk 0:02:47]}  Bb4 {[%clk 0:02:08]} 12. Ke2 {[%clk 0:02:47]}  Bxc3 {[%clk 0:02:06]} 13. bxc3 {[%clk 0:02:47]}  Ke7 {[%clk 0:01:53]} 14. Bxg6 {[%clk 0:02:43]}  Qa5 {[%clk 0:01:53]} 15. g5 {[%clk 0:02:42]}  hxg5 {[%clk 0:01:42]} 16. hxg5 {[%clk 0:02:41]}  Ne4 {[%clk 0:01:42]} 17. Bxe4 {[%clk 0:02:40]}  dxe4 {[%clk 0:01:43]} 18. Qxe4 {[%clk 0:02:40]}  Qxc3 {[%clk 0:01:35]} 19. Qd3 {[%clk 0:02:37]}  Qa5 {[%clk 0:01:21]} 20. Rhb1 {[%clk 0:02:11]}  b6 {[%clk 0:01:19]} 21. a4 {[%clk 0:02:07]}  Raf8 {[%clk 0:01:11]} 22. c4 {[%clk 0:02:02]}  Rh3 {[%clk 0:01:06]} 23. Qe4 {[%clk 0:02:02]}  Qc3 {[%clk 0:00:56]} 24. Rc1 {[%clk 0:02:01]}  Qb2+ {[%clk 0:00:53]} 25. Qc2 {[%clk 0:01:57]}  Qxc2+ {[%clk 0:00:47]} 26. Rxc2 {[%clk 0:01:57]}  Rf5 {[%clk 0:00:45]} 27. a5 {[%clk 0:01:53]}  g6 {[%clk 0:00:13]} 28. axb6 {[%clk 0:01:53]}  axb6 {[%clk 0:00:14]} 29. Ra7 {[%clk 0:01:52]} 1-0


[Site "https://www.chess.com"]

[Event "Titled Tuesday Blitz December 13 Early 2022"]
[White "Torres Boch, Jose Francisco"]
[Black "Fernandez De La Vara, Arnaldo"]
[WhiteFideId "2278383"]
[BlackFideId "3518388"]
[WhiteElo "2073"]
[BlackElo "2387"]
[Result "0-1"]
[Round "03"]
[TimeControl "180+1"]
[Date "2022.12.14"]
[WhiteClock "0:02:12"]
[BlackClock "0:02:21"]

1. e4 {[%clk 0:02:56]}  c5 {[%clk 0:03:00]} 2. Nf3 {[%clk 0:02:55]}  e6 {[%clk 0:03:01]} 3. d4 {[%clk 0:02:55]}  cxd4 {[%clk 0:03:02]} 4. Nxd4 {[%clk 0:02:55]}  a6 {[%clk 0:03:03]} 5. Bd3 {[%clk 0:02:54]}  Nf6 {[%clk 0:03:02]} 6. O-O {[%clk 0:02:55]}  Qc7 {[%clk 0:03:02]} 7. Qe2 {[%clk 0:02:55]}  d6 {[%clk 0:03:03]} 8. c4 {[%clk 0:02:56]}  g6 {[%clk 0:03:03]} 9. Nc3 {[%clk 0:02:56]}  Bg7 {[%clk 0:03:04]} 10. Be3 {[%clk 0:02:43]}  O-O {[%clk 0:03:04]} 11. f4 {[%clk 0:02:40]}  Nbd7 {[%clk 0:03:04]} 12. f5 {[%clk 0:02:30]}  exf5 {[%clk 0:03:03]} 13. exf5 {[%clk 0:02:29]}  Re8 {[%clk 0:03:04]} 14. fxg6 {[%clk 0:02:29]}  hxg6 {[%clk 0:03:02]} 15. Qf3 {[%clk 0:02:28]}  Ne5 {[%clk 0:02:58]} 16. Qd1 {[%clk 0:02:23]}  Nxc4 {[%clk 0:02:34]} 17. Bg5 {[%clk 0:02:20]}  Nh7 {[%clk 0:02:29]} 18. Nf3 {[%clk 0:02:14]}  Nxb2 {[%clk 0:02:25]} 19. Nd5 {[%clk 0:02:12]}  Qc5+ {[%clk 0:02:21]} 0-1


[Site "https://www.chess.com"]

[Event "Titled Tuesday Blitz December 13 Early 2022"]
[White "Torres Cueto, Jesus Marcial"]
[Black "Topalov, Aleksandar"]
[WhiteFideId "4415280"]
[BlackFideId "925659"]
[WhiteElo "2022"]
[BlackElo "2151"]
[Result "0-1"]
[Round "03"]
[TimeControl "180+1"]
[Date "2022.12.14"]
[WhiteClock "0:00:16"]
[BlackClock "0:00:50"]

1. Nf3 {[%clk 0:02:59]}  Nf6 {[%clk 0:02:59]} 2. c4 {[%clk 0:02:57]}  g6 {[%clk 0:02:59]} 3. g3 {[%clk 0:02:58]}  Bg7 {[%clk 0:03:00]} 4. Bg2 {[%clk 0:02:58]}  O-O {[%clk 0:03:00]} 5. O-O {[%clk 0:02:59]}  c5 {[%clk 0:03:00]} 6. Nc3 {[%clk 0:02:59]}  Nc6 {[%clk 0:03:00]} 7. d3 {[%clk 0:03:00]}  a6 {[%clk 0:02:59]} 8. e4 {[%clk 0:03:00]}  Rb8 {[%clk 0:02:58]} 9. h3 {[%clk 0:03:01]}  d6 {[%clk 0:02:54]} 10. Be3 {[%clk 0:02:58]}  b5 {[%clk 0:02:49]} 11. Rb1 {[%clk 0:02:54]}  bxc4 {[%clk 0:02:48]} 12. dxc4 {[%clk 0:02:55]}  Ne8 {[%clk 0:02:44]} 13. Qa4 {[%clk 0:02:38]}  Bb7 {[%clk 0:02:38]} 14. Nd5 {[%clk 0:02:33]}  Nc7 {[%clk 0:02:37]} 15. Rfd1 {[%clk 0:02:24]}  Ne6 {[%clk 0:02:31]} 16. a3 {[%clk 0:02:19]}  a5 {[%clk 0:02:26]} 17. Ne1 {[%clk 0:01:57]}  Ba8 {[%clk 0:02:24]} 18. f4 {[%clk 0:01:57]}  Ned4 {[%clk 0:02:23]} 19. Nf3 {[%clk 0:01:49]}  e6 {[%clk 0:02:22]} 20. Nc3 {[%clk 0:01:47]}  Nxf3+ {[%clk 0:02:19]} 21. Bxf3 {[%clk 0:01:47]}  Nd4 {[%clk 0:02:18]} 22. Bg2 {[%clk 0:01:46]}  Bc6 {[%clk 0:02:16]} 23. Nb5 {[%clk 0:01:44]}  Nxb5 {[%clk 0:02:11]} 24. cxb5 {[%clk 0:01:44]}  Bxb5 {[%clk 0:02:09]} 25. Qc2 {[%clk 0:01:45]}  Qc7 {[%clk 0:01:59]} 26. b4 {[%clk 0:01:31]}  axb4 {[%clk 0:01:58]} 27. axb4 {[%clk 0:01:32]}  c4 {[%clk 0:01:54]} 28. f5 {[%clk 0:01:29]}  Be5 {[%clk 0:01:46]} 29. g4 {[%clk 0:01:26]}  c3 {[%clk 0:01:40]} 30. Rbc1 {[%clk 0:01:03]}  Rbc8 {[%clk 0:01:40]} 31. Qf2 {[%clk 0:00:59]}  Qc4 {[%clk 0:01:34]} 32. Bg5 {[%clk 0:00:40]}  Qxb4 {[%clk 0:01:25]} 33. f6 {[%clk 0:00:32]}  Kh8 {[%clk 0:01:09]} 34. Bh6 {[%clk 0:00:26]}  Rfd8 {[%clk 0:01:06]} 35. Bg7+ {[%clk 0:00:23]}  Kg8 {[%clk 0:01:06]} 36. Qh4 {[%clk 0:00:23]}  c2 {[%clk 0:00:59]} 37. Re1 {[%clk 0:00:23]}  Qc3 {[%clk 0:00:55]} 38. g5 {[%clk 0:00:20]}  Qg3 {[%clk 0:00:53]} 39. Qxg3 {[%clk 0:00:18]}  Bxg3 {[%clk 0:00:53]} 40. Bf1 {[%clk 0:00:15]}  Bxe1 {[%clk 0:00:50]} 41. Bxb5 {[%clk 0:00:16]}  Bd2 {[%clk 0:00:50]} 0-1


[Site "https://www.chess.com"]

[Event "Titled Tuesday Blitz December 13 Early 2022"]
[White "Tsatsalashvili, Keti"]
[Black "Bethke, Richard"]
[WhiteFideId "13603434"]
[BlackFideId "12959243"]
[WhiteElo "2220"]
[BlackElo "2369"]
[Result "0-1"]
[Round "03"]
[TimeControl "180+1"]
[Date "2022.12.14"]
[WhiteClock "0:00:01"]
[BlackClock "0:00:04"]

1. d4 {[%clk 0:03:00]}  f5 {[%clk 0:02:59]} 2. Nf3 {[%clk 0:03:00]}  Nf6 {[%clk 0:02:54]} 3. Bg5 {[%clk 0:02:59]}  Ne4 {[%clk 0:02:54]} 4. h4 {[%clk 0:02:45]}  d5 {[%clk 0:02:48]} 5. Nbd2 {[%clk 0:02:40]}  Nc6 {[%clk 0:02:46]} 6. e3 {[%clk 0:02:40]}  h6 {[%clk 0:02:44]} 7. Bf4 {[%clk 0:02:32]}  e6 {[%clk 0:02:45]} 8. Ne5 {[%clk 0:02:32]}  Nxe5 {[%clk 0:02:35]} 9. Bxe5 {[%clk 0:02:33]}  Rg8 {[%clk 0:02:35]} 10. h5 {[%clk 0:02:18]}  Bd6 {[%clk 0:02:32]} 11. Be2 {[%clk 0:02:06]}  Bd7 {[%clk 0:02:21]} 12. c3 {[%clk 0:01:46]}  Qe7 {[%clk 0:02:12]} 13. Qb3 {[%clk 0:01:40]}  O-O-O {[%clk 0:02:08]} 14. a4 {[%clk 0:01:31]}  Bxe5 {[%clk 0:02:06]} 15. dxe5 {[%clk 0:01:30]}  Nxd2 {[%clk 0:02:05]} 16. Kxd2 {[%clk 0:01:31]}  c5 {[%clk 0:02:04]} 17. f4 {[%clk 0:01:28]}  Bc6 {[%clk 0:02:01]} 18. Bb5 {[%clk 0:01:21]}  c4 {[%clk 0:01:49]} 19. Qa3 {[%clk 0:01:21]}  Qc7 {[%clk 0:01:40]} 20. Bxc6 {[%clk 0:01:20]}  Qxc6 {[%clk 0:01:41]} 21. a5 {[%clk 0:01:19]}  d4 {[%clk 0:01:41]} 22. cxd4 {[%clk 0:01:17]}  Qxg2+ {[%clk 0:01:40]} 23. Kc3 {[%clk 0:01:16]}  Qe2 {[%clk 0:01:40]} 24. Rhe1 {[%clk 0:01:10]}  Qxh5 {[%clk 0:01:35]} 25. Qc5+ {[%clk 0:01:00]}  Kb8 {[%clk 0:01:34]} 26. a6 {[%clk 0:01:01]}  b6 {[%clk 0:01:23]} 27. Qc6 {[%clk 0:00:59]}  Qf7 {[%clk 0:01:23]} 28. Rg1 {[%clk 0:00:52]}  Rc8 {[%clk 0:01:16]} 29. Qf3 {[%clk 0:00:51]}  g5 {[%clk 0:01:07]} 30. fxg5 {[%clk 0:00:48]}  hxg5 {[%clk 0:01:08]} 31. Rh1 {[%clk 0:00:42]}  g4 {[%clk 0:01:02]} 32. Qg2 {[%clk 0:00:42]}  Rc7 {[%clk 0:01:01]} 33. Rh6 {[%clk 0:00:39]}  Qe7 {[%clk 0:00:54]} 34. Rah1 {[%clk 0:00:35]}  Qg5 {[%clk 0:00:53]} 35. Qg3 {[%clk 0:00:26]}  Qe7 {[%clk 0:00:31]} 36. Rh8 {[%clk 0:00:21]}  Rxh8 {[%clk 0:00:29]} 37. Rxh8+ {[%clk 0:00:22]}  Rc8 {[%clk 0:00:30]} 38. Rh6 {[%clk 0:00:21]}  b5 {[%clk 0:00:28]} 39. d5 {[%clk 0:00:18]}  b4+ {[%clk 0:00:22]} 40. Kc2 {[%clk 0:00:18]}  c3 {[%clk 0:00:18]} 41. b3 {[%clk 0:00:18]}  exd5 {[%clk 0:00:14]} 42. e6+ {[%clk 0:00:18]}  Qc7 {[%clk 0:00:15]} 43. Qg2 {[%clk 0:00:15]}  Qe5 {[%clk 0:00:14]} 44. Rh7 {[%clk 0:00:12]}  Qxe6 {[%clk 0:00:04]} 45. Rb7+ {[%clk 0:00:09]}  Ka8 {[%clk 0:00:04]} 46. Re7 {[%clk 0:00:09]}  Qxe7 {[%clk 0:00:01]} 47. Qxd5+ {[%clk 0:00:09]}  Kb8 {[%clk 0:00:02]} 48. Qb5+ {[%clk 0:00:08]}  Kc7 {[%clk 0:00:02]} 49. Qc4+ {[%clk 0:00:07]}  Kd8 {[%clk 0:00:02]} 50. Qg8+ {[%clk 0:00:07]}  Kd7 {[%clk 0:00:02]} 51. Qd5+ {[%clk 0:00:08]}  Qd6 {[%clk 0:00:03]} 52. Qxf5+ {[%clk 0:00:08]}  Kc7 {[%clk 0:00:03]} 53. Qf7+ {[%clk 0:00:07]}  Qd7 {[%clk 0:00:02]} 54. Qc4+ {[%clk 0:00:08]}  Kd6 {[%clk 0:00:02]} 55. Qd4+ {[%clk 0:00:08]}  Ke7 {[%clk 0:00:02]} 56. Qg7+ {[%clk 0:00:08]}  Kd8 {[%clk 0:00:02]} 57. Qf8+ {[%clk 0:00:08]}  Kc7 {[%clk 0:00:02]} 58. Qc5+ {[%clk 0:00:08]}  Qc6 {[%clk 0:00:02]} 59. Qe7+ {[%clk 0:00:09]}  Kb6 {[%clk 0:00:02]} 60. Qxb4+ {[%clk 0:00:08]}  Qb5 {[%clk 0:00:02]} 61. Qd6+ {[%clk 0:00:08]}  Rc6 {[%clk 0:00:03]} 62. Qd8+ {[%clk 0:00:08]}  Kxa6 {[%clk 0:00:03]} 63. Qd1 {[%clk 0:00:06]}  Qf5+ {[%clk 0:00:03]} 64. Kc1 {[%clk 0:00:05]}  c2 {[%clk 0:00:04]} 65. Qe2+ {[%clk 0:00:04]}  Qb5 {[%clk 0:00:04]} 66. Qxg4 {[%clk 0:00:04]}  Qf1+ {[%clk 0:00:03]} 67. Kb2 {[%clk 0:00:04]}  c1=Q+ {[%clk 0:00:03]} 68. Ka2 {[%clk 0:00:01]}  Qa1# {[%clk 0:00:04]} 0-1


[Site "https://www.chess.com"]

[Event "Titled Tuesday Blitz December 13 Early 2022"]
[White "Turzo, Attila"]
[Black "Sanchez, Robert"]
[WhiteFideId "704954"]
[BlackFideId "2034360"]
[WhiteElo "2572"]
[BlackElo "2344"]
[Result "1-0"]
[Round "03"]
[TimeControl "180+1"]
[Date "2022.12.14"]
[WhiteClock "0:00:11"]
[BlackClock "0:00:08"]

1. d4 {[%clk 0:03:00]}  Nf6 {[%clk 0:02:59]} 2. c4 {[%clk 0:03:01]}  e6 {[%clk 0:02:59]} 3. Nf3 {[%clk 0:03:00]}  Bb4+ {[%clk 0:02:58]} 4. Bd2 {[%clk 0:03:00]}  a5 {[%clk 0:02:57]} 5. e3 {[%clk 0:03:00]}  O-O {[%clk 0:02:57]} 6. Bd3 {[%clk 0:03:00]}  d5 {[%clk 0:02:57]} 7. O-O {[%clk 0:02:59]}  Be7 {[%clk 0:02:55]} 8. Nc3 {[%clk 0:02:57]}  c6 {[%clk 0:02:54]} 9. e4 {[%clk 0:02:56]}  dxc4 {[%clk 0:02:48]} 10. Bxc4 {[%clk 0:02:55]}  b5 {[%clk 0:02:49]} 11. Bd3 {[%clk 0:02:52]}  Bb7 {[%clk 0:02:49]} 12. e5 {[%clk 0:02:50]}  Nd5 {[%clk 0:02:49]} 13. Ne4 {[%clk 0:02:46]}  Nd7 {[%clk 0:02:48]} 14. Rc1 {[%clk 0:02:42]}  Rc8 {[%clk 0:02:45]} 15. Nfg5 {[%clk 0:02:20]}  h6 {[%clk 0:02:42]} 16. Qh5 {[%clk 0:02:09]}  c5 {[%clk 0:02:27]} 17. Nh7 {[%clk 0:01:58]}  c4 {[%clk 0:02:11]} 18. Bb1 {[%clk 0:01:40]}  f5 {[%clk 0:01:52]} 19. exf6 {[%clk 0:01:18]}  N7xf6 {[%clk 0:01:51]} 20. Nexf6+ {[%clk 0:01:14]}  Nxf6 {[%clk 0:01:52]} 21. Qg6 {[%clk 0:01:03]}  Rf7 {[%clk 0:01:21]} 22. Bxh6 {[%clk 0:00:41]}  Qd5 {[%clk 0:01:16]} 23. f3 {[%clk 0:00:25]}  Qxd4+ {[%clk 0:01:15]} 24. Kh1 {[%clk 0:00:25]}  Qh4 {[%clk 0:01:00]} 25. Ng5 {[%clk 0:00:22]}  Rcf8 {[%clk 0:00:46]} 26. Nxf7 {[%clk 0:00:18]}  Rxf7 {[%clk 0:00:46]} 27. Bg5 {[%clk 0:00:18]}  Qd4 {[%clk 0:00:38]} 28. Rfd1 {[%clk 0:00:18]}  Qxb2 {[%clk 0:00:35]} 29. Rc2 {[%clk 0:00:16]}  Qb4 {[%clk 0:00:30]} 30. Rcd2 {[%clk 0:00:16]}  Bd5 {[%clk 0:00:30]} 31. Bxf6 {[%clk 0:00:13]}  Bxf6 {[%clk 0:00:25]} 32. Qh7+ {[%clk 0:00:13]}  Kf8 {[%clk 0:00:25]} 33. Qh8+ {[%clk 0:00:14]}  Ke7 {[%clk 0:00:25]} 34. Qc8 {[%clk 0:00:13]}  Bc3 {[%clk 0:00:18]} 35. Re2 {[%clk 0:00:12]}  Qd6 {[%clk 0:00:16]} 36. Qg8 {[%clk 0:00:09]}  Bb4 {[%clk 0:00:14]} 37. Bg6 {[%clk 0:00:09]}  e5 {[%clk 0:00:10]} 38. Bxf7 {[%clk 0:00:08]}  Bxf7 {[%clk 0:00:06]} 39. Rxd6 {[%clk 0:00:07]}  Bxg8 {[%clk 0:00:06]} 40. Rb6 {[%clk 0:00:07]}  c3 {[%clk 0:00:05]} 41. Rxb5 {[%clk 0:00:07]}  Bc4 {[%clk 0:00:05]} 42. Rb7+ {[%clk 0:00:08]}  Kf6 {[%clk 0:00:05]} 43. Rc2 {[%clk 0:00:08]}  Bd3 {[%clk 0:00:05]} 44. Rc1 {[%clk 0:00:08]}  c2 {[%clk 0:00:05]} 45. Rc7 {[%clk 0:00:09]}  Ba3 {[%clk 0:00:05]} 46. R7xc2 {[%clk 0:00:10]}  Bxc2 {[%clk 0:00:06]} 47. Rxc2 {[%clk 0:00:10]}  Ke6 {[%clk 0:00:07]} 48. Rc6+ {[%clk 0:00:11]}  Kd5 {[%clk 0:00:07]} 49. Rc2 {[%clk 0:00:11]}  Bb4 {[%clk 0:00:07]} 50. g3 {[%clk 0:00:11]}  Kd4 {[%clk 0:00:07]} 51. Kg2 {[%clk 0:00:11]}  Kd3 {[%clk 0:00:08]} 52. Rc7 {[%clk 0:00:11]}  g5 {[%clk 0:00:08]} 53. h4 {[%clk 0:00:10]}  gxh4 {[%clk 0:00:08]} 54. gxh4 {[%clk 0:00:11]} 1-0


[Site "https://www.chess.com"]

[Event "Titled Tuesday Blitz December 13 Early 2022"]
[White "Tworuszka, Michal"]
[Black "Johnson, Ben"]
[WhiteFideId "1117858"]
[BlackFideId "2010917"]
[WhiteElo "2422"]
[BlackElo "2197"]
[Result "0-1"]
[Round "03"]
[TimeControl "180+1"]
[Date "2022.12.14"]
[WhiteClock "0:00:02"]
[BlackClock "0:00:14"]

1. d4 {[%clk 0:03:00]}  Nf6 {[%clk 0:02:58]} 2. c4 {[%clk 0:03:01]}  e6 {[%clk 0:02:59]} 3. Nf3 {[%clk 0:03:00]}  d5 {[%clk 0:02:55]} 4. g3 {[%clk 0:02:59]}  dxc4 {[%clk 0:02:54]} 5. Bg2 {[%clk 0:02:58]}  c5 {[%clk 0:02:54]} 6. O-O {[%clk 0:02:57]}  Nc6 {[%clk 0:02:53]} 7. Qa4 {[%clk 0:02:55]}  Bd7 {[%clk 0:02:51]} 8. Qxc4 {[%clk 0:02:49]}  b5 {[%clk 0:02:50]} 9. Qc3 {[%clk 0:02:25]}  Nd5 {[%clk 0:02:18]} 10. Qd3 {[%clk 0:02:06]}  c4 {[%clk 0:02:15]} 11. Qc2 {[%clk 0:01:58]}  Be7 {[%clk 0:02:08]} 12. a3 {[%clk 0:01:54]}  f5 {[%clk 0:01:58]} 13. Nc3 {[%clk 0:01:46]}  Nxc3 {[%clk 0:01:50]} 14. bxc3 {[%clk 0:01:27]}  Rb8 {[%clk 0:01:43]} 15. Bf4 {[%clk 0:01:17]}  Rb6 {[%clk 0:01:43]} 16. e4 {[%clk 0:01:11]}  O-O {[%clk 0:01:36]} 17. exf5 {[%clk 0:00:32]}  exf5 {[%clk 0:01:37]} 18. Ne5 {[%clk 0:00:25]}  Nxe5 {[%clk 0:01:34]} 19. Bxe5 {[%clk 0:00:26]}  Bc6 {[%clk 0:01:28]} 20. d5 {[%clk 0:00:15]}  Bb7 {[%clk 0:01:13]} 21. Rfd1 {[%clk 0:00:15]}  Bf6 {[%clk 0:00:56]} 22. Bd4 {[%clk 0:00:07]}  Bxd4 {[%clk 0:00:53]} 23. Rxd4 {[%clk 0:00:08]}  Rd6 {[%clk 0:00:53]} 24. Rad1 {[%clk 0:00:06]}  f4 {[%clk 0:00:48]} 25. Rxf4 {[%clk 0:00:01]}  Rxf4 {[%clk 0:00:48]} 26. gxf4 {[%clk 0:00:02]}  Qf6 {[%clk 0:00:48]} 27. Bh1 {[%clk 0:00:02]}  Qxf4 {[%clk 0:00:44]} 28. Qe4 {[%clk 0:00:02]}  Rg6+ {[%clk 0:00:40]} 29. Kf1 {[%clk 0:00:03]}  Qxe4 {[%clk 0:00:24]} 30. Bxe4 {[%clk 0:00:04]}  Rd6 {[%clk 0:00:24]} 31. Ke2 {[%clk 0:00:04]}  h6 {[%clk 0:00:21]} 32. Ke3 {[%clk 0:00:04]}  g5 {[%clk 0:00:21]} 33. Kd4 {[%clk 0:00:04]}  Ra6 {[%clk 0:00:17]} 34. Ra1 {[%clk 0:00:01]}  Kf8 {[%clk 0:00:17]} 35. Kc5 {[%clk 0:00:01]}  Ke7 {[%clk 0:00:14]} 36. Kxb5 {[%clk 0:00:02]}  Kd6 {[%clk 0:00:14]} 0-1


[Site "https://www.chess.com"]

[Event "Titled Tuesday Blitz December 13 Early 2022"]
[White "Vidit, Santosh Gujrathi"]
[Black "Lamaze, Simon"]
[WhiteFideId "5029465"]
[BlackFideId "36069264"]
[WhiteElo "3018"]
[BlackElo "2633"]
[Result "1/2-1/2"]
[Round "03"]
[TimeControl "180+1"]
[Date "2022.12.14"]
[WhiteClock "0:00:47"]
[BlackClock "0:01:04"]

1. e4 {[%clk 0:03:00]}  c5 {[%clk 0:02:49]} 2. Nc3 {[%clk 0:02:59]}  d6 {[%clk 0:02:48]} 3. f4 {[%clk 0:02:58]}  Nc6 {[%clk 0:02:47]} 4. Bb5 {[%clk 0:02:54]}  g6 {[%clk 0:02:46]} 5. Bxc6+ {[%clk 0:02:46]}  bxc6 {[%clk 0:02:46]} 6. Nf3 {[%clk 0:02:46]}  Bg7 {[%clk 0:02:47]} 7. O-O {[%clk 0:02:45]}  c4 {[%clk 0:02:47]} 8. Qe2 {[%clk 0:02:39]}  Ba6 {[%clk 0:02:46]} 9. Kh1 {[%clk 0:02:29]}  Nf6 {[%clk 0:02:41]} 10. e5 {[%clk 0:02:23]}  Nd5 {[%clk 0:02:41]} 11. Ng5 {[%clk 0:02:14]}  O-O {[%clk 0:02:27]} 12. b3 {[%clk 0:01:53]}  Nxc3 {[%clk 0:02:14]} 13. dxc3 {[%clk 0:01:53]}  dxe5 {[%clk 0:02:14]} 14. fxe5 {[%clk 0:01:51]}  Qc8 {[%clk 0:02:13]} 15. b4 {[%clk 0:01:45]}  c5 {[%clk 0:02:12]} 16. a4 {[%clk 0:01:41]}  cxb4 {[%clk 0:02:10]} 17. cxb4 {[%clk 0:01:42]}  Bb7 {[%clk 0:02:10]} 18. Bf4 {[%clk 0:01:38]}  f6 {[%clk 0:02:03]} 19. exf6 {[%clk 0:01:36]}  exf6 {[%clk 0:02:03]} 20. Qe6+ {[%clk 0:01:35]}  Qxe6 {[%clk 0:02:01]} 21. Nxe6 {[%clk 0:01:35]}  Rfe8 {[%clk 0:02:00]} 22. Nc7 {[%clk 0:01:12]}  Re2 {[%clk 0:01:59]} 23. Nxa8 {[%clk 0:01:12]}  Rxg2 {[%clk 0:01:52]} 24. h4 {[%clk 0:00:51]}  Bxa8 {[%clk 0:01:50]} 25. Rad1 {[%clk 0:00:46]}  Rxc2+ {[%clk 0:01:46]} 26. Kg1 {[%clk 0:00:46]}  Rg2+ {[%clk 0:01:24]} 27. Kh1 {[%clk 0:00:47]}  Rd2+ {[%clk 0:01:05]} 28. Kg1 {[%clk 0:00:47]}  Rg2+ {[%clk 0:01:05]} 29. Kh1 {[%clk 0:00:47]}  Rd2+ {[%clk 0:01:04]} 30. Kg1 {[%clk 0:00:47]}  Rg2+ {[%clk 0:01:04]} 1/2-1/2


[Site "https://www.chess.com"]

[Event "Titled Tuesday Blitz December 13 Early 2022"]
[White "Yuan, Qingyu"]
[Black "Sailer, Mike"]
[WhiteFideId "8609772"]
[BlackFideId "2012901"]
[WhiteElo "2359"]
[BlackElo "2109"]
[Result "1-0"]
[Round "03"]
[TimeControl "180+1"]
[Date "2022.12.14"]
[WhiteClock "0:00:03"]
[BlackClock "0:00:06"]

1. e4 {[%clk 0:03:00]}  d5 {[%clk 0:02:59]} 2. exd5 {[%clk 0:03:00]}  Qxd5 {[%clk 0:03:00]} 3. Nc3 {[%clk 0:02:59]}  Qd6 {[%clk 0:03:00]} 4. d4 {[%clk 0:02:59]}  Nf6 {[%clk 0:03:01]} 5. Nf3 {[%clk 0:02:59]}  c6 {[%clk 0:03:01]} 6. Ne5 {[%clk 0:02:59]}  Nbd7 {[%clk 0:03:01]} 7. f4 {[%clk 0:03:00]}  g6 {[%clk 0:02:59]} 8. g4 {[%clk 0:02:53]}  Bg7 {[%clk 0:02:46]} 9. Bg2 {[%clk 0:02:50]}  Nb6 {[%clk 0:02:39]} 10. O-O {[%clk 0:02:47]}  O-O {[%clk 0:02:35]} 11. a4 {[%clk 0:02:38]}  Nbd5 {[%clk 0:02:28]} 12. Qe2 {[%clk 0:01:47]}  Nxc3 {[%clk 0:02:23]} 13. bxc3 {[%clk 0:01:47]}  Nd5 {[%clk 0:02:11]} 14. Qe1 {[%clk 0:01:30]}  b6 {[%clk 0:01:57]} 15. Ba3 {[%clk 0:01:30]}  Qc7 {[%clk 0:01:57]} 16. c4 {[%clk 0:01:28]}  Bxe5 {[%clk 0:01:57]} 17. fxe5 {[%clk 0:01:15]}  Bxg4 {[%clk 0:01:54]} 18. cxd5 {[%clk 0:01:12]}  cxd5 {[%clk 0:01:54]} 19. Qh4 {[%clk 0:01:07]}  Be6 {[%clk 0:01:37]} 20. Bxe7 {[%clk 0:01:06]}  Rfe8 {[%clk 0:01:33]} 21. Bf6 {[%clk 0:01:05]}  h5 {[%clk 0:01:26]} 22. Rf2 {[%clk 0:00:28]}  Qc3 {[%clk 0:01:21]} 23. Raf1 {[%clk 0:00:25]}  Rac8 {[%clk 0:01:21]} 24. Kh1 {[%clk 0:00:25]}  Rc4 {[%clk 0:01:20]} 25. Rf4 {[%clk 0:00:20]}  Qxc2 {[%clk 0:01:18]} 26. Qg5 {[%clk 0:00:20]}  Kh7 {[%clk 0:01:18]} 27. Rh4 {[%clk 0:00:21]}  Qe2 {[%clk 0:01:10]} 28. Rhf4 {[%clk 0:00:21]}  Rc2 {[%clk 0:00:54]} 29. R4f2 {[%clk 0:00:18]}  Qd3 {[%clk 0:00:43]} 30. Rf3 {[%clk 0:00:10]}  Qe2 {[%clk 0:00:42]} 31. R3f2 {[%clk 0:00:10]}  Qd3 {[%clk 0:00:41]} 32. Rxc2 {[%clk 0:00:10]}  Qxc2 {[%clk 0:00:41]} 33. Qe3 {[%clk 0:00:04]}  Qxa4 {[%clk 0:00:38]} 34. Bf3 {[%clk 0:00:04]}  Qc2 {[%clk 0:00:26]} 35. Rg1 {[%clk 0:00:04]}  Qf5 {[%clk 0:00:19]} 36. Be2 {[%clk 0:00:04]}  Rc8 {[%clk 0:00:18]} 37. Rg5 {[%clk 0:00:03]}  Qb1+ {[%clk 0:00:15]} 38. Kg2 {[%clk 0:00:03]}  Rc1 {[%clk 0:00:06]} 39. Rxh5+ {[%clk 0:00:03]}  Kg8 {[%clk 0:00:06]} 40. Rh8# {[%clk 0:00:03]} 1-0


[Site "https://www.chess.com"]